bitfinex-derivatives/quotes_ETHF0:USTF0_20250627
["timestamp","ask_amount","ask_price","bid_price","bid_amount"]
[1751002818231,3.61784,2437.7,2437.5,0.41007]
[1751002818433,3.61784,2437.7,2437.5,3.36727466]
[1751002820528,3.61784,2437.7,2437.5,0.41007]
[1751002820834,0.41007,2437.6,2437.4,25.58609]
[1751002821330,4.5475,2437.7,2437.4,25.177]
[1751002821331,0.41007,2437.5,2437.4,25.177]
[1751002822136,1.09827,2437.5,2437.4,25.177]
[1751002822635,0.6882,2437.5,2437.4,25.177]
[1751002822833,1.09827,2437.5,2437.4,25.177]
[1751002825337,2.19100449,2437.5,2437.4,25.177]
[1751002828934,1.50280449,2437.5,2437.4,25.58709]
[1751002829128,1.09273449,2437.5,2437.4,25.58709]
[1751002829631,1.50280449,2437.5,2437.4,25.177]
[1751002832739,0.41009,2437.4,2437.3,0.6954]
[1751002832942,2.21812449,2437.4,2437.3,32.4204]
[1751002833537,2.21812449,2437.4,2437.3,32.4194]
[1751002835640,2.21812449,2437.4,2437.3,7.2444]
[1751002835835,2.21812449,2437.4,2437.3,32.4194]
[1751002837042,2.21812449,2437.4,2437.3,0.6954]
[1751002837242,2.21812449,2437.4,2437.3,32.4184]
[1751002838043,2.21812449,2437.4,2437.3,7.2444]
[1751002838238,2.21812449,2437.4,2437.3,32.4194]
[1751002840137,1.80803449,2437.4,2437.1,0.7156]
[1751002840335,1.09273449,2437.3,2436.9,0.6775]
[1751002840535,0.41015,2437.0,2436.9,0.6775]
[1751002840837,0.41015,2437.0,2436.9,32.4015]
[1751002841545,0.41019,2436.8,2436.7,3.2078]
[1751002841846,3.2078,2437.1,2436.7,28.13120466]
[1751002842031,7.9788,2437.4,2436.9,2.95720466]
[1751002842232,0.41015,2437.0,2436.9,25.174]
[1751002842739,1.3631,2437.3,2436.9,25.58416]
[1751002842943,1.09370689,2437.2,2437.1,2.95720466]
[1751002843244,1.09370689,2437.2,2437.1,28.13120466]
[1751002843741,1.09370689,2437.2,2437.1,29.48130466]
[1751002844346,1.09370689,2437.2,2437.1,29.89144466]
[1751002844547,1.09370689,2437.2,2437.1,31.28884466]
[1751002846053,1.09370689,2437.2,2437.1,27.9215]
[1751002846348,1.50382689,2437.2,2437.1,27.9215]
[1751002846648,0.41012,2437.2,2437.1,27.9215]
[1751002846851,3.2078,2437.8,2437.1,27.9215]
[1751002847146,0.41008,2437.5,2437.3,2.95720466]
[1751002847349,0.41008,2437.5,2437.4,25.174]
[1751002847546,0.41008,2437.5,2437.4,25.8601]
[1751002847746,1.50374019,2437.5,2437.4,25.8601]
[1751002847946,1.50374019,2437.5,2437.4,25.46014096]
[1751002848545,1.09366019,2437.5,2437.4,25.87023096]
[1751002848851,4.5743,2437.8,2437.4,31.86304096]
[1751002848852,3.2078,2437.8,2437.4,31.86304096]
[1751002849150,3.61783,2437.8,2437.6,3.36725466]
[1751002849354,3.2078,2437.8,2437.7,25.59004]
[1751002849542,3.2078,2437.8,2437.7,26.25154]
[1751002851652,3.2078,2437.8,2437.7,25.8415]
[1751002852052,3.2078,2437.8,2437.7,26.25154]
[1751002852253,3.2078,2437.8,2437.7,26.93954]
[1751002852953,0.41002,2437.9,2437.7,26.93954]
[1751002854459,0.41,2438.0,2437.7,26.5295]
[1751002854653,0.41,2438.0,2437.8,0.41002]
[1751002855454,0.41,2438.0,2437.7,28.31983]
[1751002855656,4.29438,2438.1,2437.8,3.36721466]
[1751002856454,0.40999,2438.0,2437.8,3.36721466]
[1751002856752,0.40999,2438.0,2437.8,4.70991466]
[1751002857146,0.41,2437.9,2437.8,2.95720466]
[1751002858353,0.41001,2437.9,2437.7,26.93953]
[1751002858754,0.41001,2437.9,2437.7,26.93954]
[1751002858952,0.41001,2437.9,2437.7,26.5295]
[1751002859157,0.41002,2437.8,2437.7,26.5295]
[1751002860159,0.41001,2437.9,2437.7,26.93954]
[1751002860360,0.41002,2437.8,2437.7,27.8869]
[1751002861158,0.41001,2437.9,2437.7,28.29694]
[1751002861363,0.41001,2437.9,2437.8,4.31460466]
[1751002864465,0.41002,2437.8,2437.7,7.8945]
[1751002864766,1.10472,2437.8,2437.7,32.401]
[1751002866670,1.10472,2437.8,2437.7,31.713]
[1751002869075,2.57042,2437.8,2437.7,31.713]
[1751002870471,8.32540466,2437.8,2437.3,3.2078]
[1751002870776,0.41005,2437.6,2437.4,27.01298]
[1751002871882,0.41007,2437.5,2437.4,27.01298]
[1751002872073,0.41007,2437.5,2437.4,26.6029]
[1751002875978,3.61783,2437.8,2437.6,0.41005]
[1751002876173,3.61783,2437.8,2437.7,34.66920466]
[1751002876478,4.29396775,2437.8,2437.7,35.75514466]
[1751002877078,0.41001,2437.9,2437.7,35.75514466]
[1751002879577,0.41002,2437.8,2437.7,35.34510466]
[1751002881786,0.41001,2437.9,2437.7,35.75514466]
[1751002883085,0.41002,2437.8,2437.7,35.75514466]
[1751002884986,0.41002,2437.8,2437.7,35.34510466]
[1751002885885,0.41002,2437.8,2437.7,32.3879]
[1751002886183,0.41002,2437.8,2437.7,35.75514466]
[1751002886384,3.2078,2438.3,2437.7,40.34510466]
[1751002886584,1.49676361,2438.2,2438.1,2.95720466]
[1751002886785,2.19006361,2438.2,2438.1,28.12120466]
[1751002888493,1.49676361,2438.2,2438.1,28.12120466]
[1751002889387,1.49676361,2438.2,2438.1,25.164]
[1751002891195,1.09967,2438.2,2438.1,25.164]
[1751002892295,0.40997,2438.1,2438.0,0.7235]
[1751002892495,0.40997,2438.1,2438.0,32.4285]
[1751002892994,1.09966,2438.2,2438.0,32.83849]
[1751002893595,0.40997,2438.1,2438.0,32.4285]
[1751002895695,0.40997,2438.1,2438.0,32.83849]
[1751002895895,0.40997,2438.1,2438.0,32.4285]
[1751002896294,1.09966,2438.2,2438.0,32.83848]
[1751002896493,0.40996,2438.2,2438.1,0.40997]
[1751002896695,3.61774,2438.3,2438.1,3.36717466]
[1751002896895,3.61774,2438.3,2438.2,25.161]
[1751002897090,4.2930841,2438.3,2438.2,25.161]
[1751002897290,3.2078,2438.3,2438.2,25.57095]
[1751002898097,3.2078,2438.3,2438.2,25.161]
[1751002898098,3.61774,2438.3,2438.2,25.161]
[1751002898793,3.2078,2438.7,2438.2,25.161]
[1751002898999,1.08509355,2438.6,2438.5,3.36710466]
[1751002899191,1.08509355,2438.6,2438.5,28.52710466]
[1751002899192,1.49498355,2438.6,2438.5,28.52710466]
[1751002899591,1.49498355,2438.6,2438.5,28.11720466]
[1751002899791,1.49498355,2438.6,2438.5,25.16]
[1751002899988,4.04229821,2438.6,2438.5,25.16]
[1751002900191,5.41109821,2438.6,2438.5,25.16]
[1751002900498,5.82098821,2438.6,2438.5,25.16]
[1751002901293,0.4099,2438.5,2438.4,25.159]
[1751002901494,0.40999,2438.0,2437.9,3.9311]
[1751002901798,0.41,2438.0,2437.9,31.701]
[1751002902100,0.41,2437.9,2437.8,6.542]
[1751002902300,2.4524,2437.9,2437.8,31.701]
[1751002905798,0.41,2437.9,2437.8,31.701]
[1751002906003,1.1285,2437.9,2437.8,6.542]
[1751002906199,2.5385,2437.9,2437.8,31.701]
[1751002906398,0.41002,2437.8,2437.7,25.159]
[1751002906600,0.41004,2437.7,2437.6,6.543]
[1751002906904,0.41007,2437.5,2437.4,0.6719]
[1751002907105,4.36720466,2437.8,2437.3,3.2078]
[1751002907106,0.41009,2437.4,2437.3,3.2078]
[1751002907400,0.41009,2437.4,2437.0,25.16]
[1751002907401,0.41014,2437.1,2437.0,25.16]
[1751002908697,1.12862,2437.3,2437.0,25.16]
[1751002909005,3.2078,2437.4,2437.0,28.11720466]
[1751002909205,0.6989,2437.2,2437.0,28.11720466]
[1751002909702,0.41014,2437.1,2437.0,25.16]
[1751002909899,0.41017,2436.9,2436.8,4.7727984]
[1751002910099,0.41017,2436.9,2436.8,36.4777984]
[1751002910299,0.41017,2436.9,2436.8,32.3965]
[1751002910901,0.41016,2437.0,2436.8,35.76389466]
[1751002911407,0.41016,2437.0,2436.8,35.35370466]
[1751002912006,0.41017,2436.9,2436.8,35.35370466]
[1751002912904,0.41024,2436.6,2436.5,2.95720466]
[1751002913106,0.7124,2437.0,2436.5,2.95720466]
[1751002913107,0.41022,2436.7,2436.5,28.12120466]
[1751002913708,1.0807,2436.8,2436.5,28.53144466]
[1751002913909,1.0807,2436.8,2436.6,0.41022]
[1751002914207,1.0807,2436.8,2436.7,25.163]
[1751002914511,0.6705,2436.8,2436.7,25.163]
[1751002914710,0.41018,2436.9,2436.7,28.53041466]
[1751002914908,0.41018,2436.9,2436.7,35.07441466]
[1751002915499,0.41018,2436.9,2436.7,34.66420466]
[1751002915704,0.41018,2436.9,2436.7,35.07440466]
[1751002916009,1.08627,2437.0,2436.7,35.07640466]
[1751002916208,0.41017,2436.9,2436.7,35.07640466]
[1751002916611,0.41017,2436.9,2436.8,0.696]
[1751002918011,1.08627,2437.0,2436.8,1.10619]
[1751002918215,3.61795,2437.1,2436.9,28.53237466]
[1751002919827,3.2214733,2438.5,2438.0,3.2078]
[1751002920008,1.4542,2440.0,2438.5,3.2078]
[1751002920309,1.4542,2440.0,2439.4,3.2078]
[1751002920310,2.95720466,2439.9,2439.4,3.2078]
[1751002920517,3.2078,2439.6,2439.3,26.399]
[1751002920707,4.41140466,2439.5,2439.1,3.2078]
[1751002920909,2.8167,2439.5,2439.4,3.2078]
[1751002921211,2.8167,2439.5,2439.4,6.16500466]
[1751002921514,2.8167,2439.5,2439.4,3.2078]
[1751002923306,8.22644,2439.5,2439.1,29.5758]
[1751002923507,2.8167,2439.5,2439.1,29.5758]
[1751002924121,2.8167,2439.5,2439.1,29.98559]
[1751002924515,2.8167,2439.5,2439.2,0.40978]
[1751002924709,7.072,2439.8,2439.4,3.2078]
[1751002924913,1.434,2439.7,2439.5,6.08723059]
[1751002925119,1.434,2439.7,2439.4,29.98554]
[1751002925411,1.434,2439.7,2439.4,29.5758]
[1751002927917,1.8437,2439.7,2439.4,29.5758]
[1751002928519,0.40973,2439.6,2439.4,29.5758]
[1751002928719,1.84463,2439.6,2439.4,29.5758]
[1751002930530,1.4349,2439.6,2439.4,29.5758]
[1751002930823,1.84463,2439.6,2439.4,29.5758]
[1751002931719,1.4349,2439.6,2439.1,3.2078]
[1751002931918,3.2078,2439.4,2438.8,3.2078]
[1751002932223,0.40984,2438.9,2438.7,26.241]
[1751002932527,0.40984,2438.9,2438.7,67.041]
[1751002933326,3.2078,2439.1,2438.9,0.40982]
[1751002933524,3.2078,2439.1,2439.0,31.91151059]
[1751002933926,3.6176,2439.1,2439.0,31.91151059]
[1751002935623,0.40979,2439.2,2439.0,35.11931059]
[1751002937132,0.40979,2439.2,2439.0,35.78301059]
[1751002938129,0.40979,2439.2,2439.0,36.19283059]
[1751002940128,0.40978,2439.3,2439.0,36.19283059]
[1751002940425,0.40977,2439.4,2439.0,35.78301059]
[1751002940727,0.40977,2439.4,2439.1,0.40979]
[1751002941021,0.40977,2439.4,2439.2,26.139]
[1751002941221,0.40977,2439.3,2439.2,26.139]
[1751002943521,0.40976,2439.4,2439.2,26.54878]
[1751002943930,0.40974,2439.5,2439.2,26.54878]
[1751002944223,1.76904,2439.5,2439.2,26.54878]
[1751002945023,1.76904,2439.5,2439.3,0.40976]
[1751002945329,1.3593,2439.5,2439.2,26.54878]
[1751002945629,1.76905,2439.5,2439.2,26.54878]
[1751002946030,0.40976,2439.4,2439.2,26.54878]
[1751002946223,8.88531059,2439.3,2438.7,4.42914219]
[1751002946425,0.40987,2438.7,2438.6,1.22134219]
[1751002946634,0.40989,2438.6,2438.5,1.22134219]
[1751002946829,1.3432,2438.6,2438.5,1.22134219]
[1751002947124,1.08274,2438.9,2438.6,0.40988]
[1751002947321,0.6729,2438.9,2438.6,0.40989]
[1751002947523,1.08274,2438.9,2438.6,26.47989]
[1751002947723,1.08274,2438.9,2438.6,26.07]
[1751002947920,0.40985,2438.8,2438.6,26.07]
[1751002948120,0.40987,2438.7,2438.6,27.29004644]
[1751002948326,0.40987,2438.7,2438.6,1.22004644]
[1751002948533,0.40989,2438.6,2438.5,27.28404644]
[1751002948831,2.48409,2438.6,2438.5,27.69072859]
[1751002949223,2.48409,2438.6,2438.5,26.064]
[1751002949424,2.48409,2438.6,2438.5,28.51570075]
[1751002949832,2.48409,2438.6,2438.5,26.064]
[1751002951331,2.48409,2438.6,2438.5,27.69799206]
[1751002951634,2.48409,2438.6,2438.5,28.51565235]
[1751002953034,2.48409,2438.6,2438.5,26.064]
[1751002953232,2.48409,2438.6,2438.5,27.29031909]
[1751002953432,2.48409,2438.6,2438.5,26.064]
[1751002953835,2.48409,2438.6,2438.4,1.22631909]
[1751002954133,2.48409,2438.6,2438.5,1.22631909]
[1751002954328,2.0742,2438.6,2438.5,1.22631909]
[1751002954529,0.40988,2438.7,2438.5,1.22631909]
[1751002954841,0.40989,2438.6,2438.4,2.0449478]
[1751002955129,0.40989,2438.6,2438.5,1.22531908]
[1751002955335,0.40988,2438.7,2438.5,1.22531908]
[1751002955731,1.4466,2438.8,2438.5,1.22531908]
[1751002955732,8.14074,2438.9,2438.6,7.31269967]
[1751002955932,0.40987,2438.7,2438.6,6.90282967]
[1751002956128,0.40986,2438.8,2438.6,6.90282967]
[1751002956329,0.40986,2438.8,2438.6,32.87782967]
[1751002956537,0.40986,2438.8,2438.6,27.20031908]
[1751002956839,0.40981,2439.1,2438.8,0.40984]
[1751002957338,3.2078,2439.2,2439.0,6.08732059]
[1751002957637,0.4098,2439.1,2438.9,26.37682]
[1751002957938,3.61759,2439.2,2438.9,26.37682]
[1751002958136,3.2078,2439.2,2438.9,26.37682]
[1751002958540,3.6176,2439.2,2438.9,26.37682]
[1751002958740,0.4098,2439.1,2438.9,26.37682]
[1751002958937,3.61759,2439.2,2439.0,1.22531908]
[1751002959138,0.40978,2439.3,2439.1,0.4098]
[1751002960044,0.40978,2439.3,2439.0,1.63512908]
[1751002960644,0.40977,2439.3,2439.1,1.63510908]
[1751002962046,0.40977,2439.3,2439.2,1.22531908]
[1751002962650,1.73196,2439.4,2439.2,1.22531908]
[1751002962942,1.73195,2439.4,2439.3,1.22531908]
[1751002963147,0.40974,2439.5,2439.3,1.22531908]
[1751002963940,0.40975,2439.4,2439.3,1.22531908]
[1751002965340,0.40974,2439.5,2439.3,1.22531908]
[1751002965655,0.40971,2439.7,2439.4,6.08726059]
[1751002965946,0.40971,2439.7,2439.4,7.31257967]
[1751002966342,3.61753,2439.5,2439.2,1.6350278]
[1751002966543,3.61753,2439.5,2438.3,58.10576731]
[1751002966544,0.40982,2439.0,2438.9,2.45165235]
[1751002966749,3.61762,2439.0,2438.9,2.45165235]
[1751002966945,0.40984,2438.9,2438.8,3.25691251]
[1751002967246,0.40985,2438.8,2438.7,2.45046704]
[1751002967450,0.40987,2438.7,2438.6,2.45046704]
[1751002967645,1.80737,2438.7,2438.6,2.45046704]
[1751002968251,1.80737,2438.7,2438.4,2.45046704]
[1751002968644,1.80737,2438.7,2438.3,30.89183]
[1751002968645,1.80737,2438.7,2438.3,33.34229704]
[1751002969152,0.40989,2438.6,2438.3,33.34229704]
[1751002969446,1.3975,2438.7,2438.3,30.4819]
[1751002969648,0.40989,2438.6,2438.3,30.4819]
[1751002970451,0.40989,2438.6,2438.3,30.89183]
[1751002971447,1.3975,2438.7,2438.3,30.4819]
[1751002971650,3.2078,2439.0,2438.5,5.67751059]
[1751002972046,2.8009,2439.2,2438.6,3.2078]
[1751002972350,0.40984,2438.9,2438.7,25.837]
[1751002972752,0.40983,2439.0,2438.7,25.837]
[1751002973150,0.40984,2438.9,2438.7,25.837]
[1751002973350,0.40983,2439.0,2438.7,26.24687]
[1751002973645,0.4098,2439.1,2438.7,26.24686]
[1751002973856,0.4098,2439.1,2438.8,0.40985]
[1751002974052,0.4098,2439.1,2438.8,6.08736059]
[1751002975357,0.7322,2439.2,2438.9,0.40983]
[1751002975657,3.61758,2439.3,2439.0,0.40982]
[1751002975858,3.61758,2439.3,2438.9,3.18692]
[1751002976253,3.61757,2439.3,2439.0,0.40981]
[1751002976653,3.61757,2439.3,2439.0,1.3491]
[1751002977055,3.2078,2439.3,2438.9,1.83782]
[1751002977256,0.40979,2439.2,2439.0,25.795]
[1751002981865,0.40979,2439.2,2439.0,26.20482]
[1751002983768,0.40979,2439.2,2439.0,25.795]
[1751002983964,1.3778,2439.4,2439.0,25.795]
[1751002984366,0.40978,2439.2,2439.0,26.20482]
[1751002984566,0.40981,2439.1,2438.9,8.73082]
[1751002984767,0.40981,2439.1,2439.0,25.723]
[1751002987978,2.0939,2439.2,2439.0,25.723]
[1751002988183,2.50369,2439.2,2439.0,26.13281]
[1751002988686,0.4098,2439.1,2439.0,25.723]
[1751002989485,0.4098,2439.1,2439.0,26.13282]
[1751002989885,2.5037,2439.2,2439.0,26.13282]
[1751002990686,0.4098,2439.1,2439.0,25.723]
[1751002992887,2.5037,2439.2,2439.0,26.05982]
[1751002993189,1.0963,2439.2,2439.0,26.05982]
[1751002993488,0.40977,2439.3,2439.1,0.4098]
[1751002994192,0.40978,2439.2,2439.0,26.74331]
[1751002994383,0.40978,2439.3,2439.1,0.4098]
[1751002999092,0.40978,2439.3,2439.1,26.0238]
[1751002999488,0.40978,2439.3,2439.1,26.0088]
[1751003001192,0.40978,2439.2,2439.1,25.599]
[1751003003197,6.02364335,2439.5,2438.9,13.25706704]
[1751003003198,0.40982,2439.0,2438.9,3.2078]
[1751003003393,3.36799335,2439.0,2438.9,28.7708]
[1751003003791,5.49029335,2439.0,2438.9,25.561]
[1751003004300,2.53212,2439.0,2438.9,25.561]
[1751003009905,0.40984,2438.9,2438.8,2.45046704]
[1751003010102,0.40984,2438.9,2438.8,27.97646704]
[1751003010404,0.40984,2438.9,2438.8,27.96346704]
[1751003019008,0.40984,2438.9,2438.8,25.513]
[1751003022719,0.40985,2438.8,2438.7,2.45046704]
[1751003022915,4.80872335,2438.8,2438.7,25.431]
[1751003023114,0.40987,2438.7,2438.6,5.65826704]
[1751003023315,1.85347,2438.7,2438.6,31.08426704]
[1751003023912,1.85347,2438.7,2438.6,5.65826704]
[1751003024114,1.85347,2438.7,2438.6,31.08526704]
[1751003025012,1.85347,2438.7,2438.6,31.07926704]
[1751003025709,1.85347,2438.7,2438.6,28.6288]
[1751003027316,1.85347,2438.7,2438.6,28.6088]
[1751003031518,1.85347,2438.7,2438.6,3.2078]
[1751003031718,1.85347,2438.7,2438.6,28.5818]
[1751003032718,1.85347,2438.7,2438.6,3.2078]
[1751003032918,1.85347,2438.7,2438.6,28.5808]
[1751003033218,1.85347,2438.7,2438.6,28.5728]
[1751003039223,1.85347,2438.7,2438.6,3.2078]
[1751003039426,1.85347,2438.7,2438.6,28.5588]
[1751003044322,0.40987,2438.7,2438.6,28.5588]
[1751003044521,0.40986,2438.8,2438.6,31.92684335]
[1751003044826,0.40985,2438.9,2438.7,0.40986]
[1751003045025,0.40985,2438.9,2438.7,1.08186]
[1751003045218,0.40985,2438.9,2438.8,25.351]
[1751003045422,1.40951241,2438.9,2438.8,25.351]
[1751003048734,1.40950241,2438.9,2438.8,25.351]
[1751003048934,0.99966241,2438.9,2438.8,28.71902335]
[1751003049135,0.40982,2439.0,2438.8,28.71902335]
[1751003049336,0.40982,2439.0,2438.8,30.05152335]
[1751003050233,0.99992355,2438.9,2438.8,30.05152335]
[1751003050735,0.40982,2439.0,2438.8,30.05152335]
[1751003051135,0.99990648,2438.9,2438.8,30.05152335]
[1751003051637,0.99990648,2438.9,2438.8,29.64167335]
[1751003051933,1.40974648,2438.9,2438.8,28.30917335]
[1751003052134,1.40974648,2438.9,2438.8,25.351]
[1751003052534,0.99990648,2438.9,2438.8,25.351]
[1751003052736,0.99990648,2438.9,2438.8,28.71902335]
[1751003054837,0.99990648,2438.9,2438.8,35.37302335]
[1751003056139,0.40982,2439.0,2438.8,35.37302335]
[1751003057136,0.40982,2439.0,2438.8,38.58082335]
[1751003061342,0.40984,2438.9,2438.8,38.58082335]
[1751003061543,0.40984,2438.9,2438.8,38.17097335]
[1751003062345,0.40984,2438.9,2438.8,38.58082335]
[1751003062640,0.40983,2439.0,2438.8,38.58082335]
[1751003063144,0.40984,2438.9,2438.8,38.58082335]
[1751003063342,0.40982,2439.1,2438.9,0.40983]
[1751003063537,0.40982,2439.1,2439.0,25.345]
[1751003063933,1.41455789,2439.1,2439.0,25.345]
[1751003066045,1.00473789,2439.1,2439.0,25.345]
[1751003066239,1.07377,2439.3,2439.1,0.4098]
[1751003066445,2.0919,2439.6,2439.2,28.70994335]
[1751003066645,1.41424689,2439.5,2439.4,3.2078]
[1751003066941,1.41424689,2439.5,2439.4,28.5498]
[1751003068346,0.40975,2439.5,2439.4,28.5498]
[1751003070541,8.56833635,2440.1,2439.5,0.40972]
[1751003070744,1.67294908,2440.0,2439.6,25.34]
[1751003070939,0.4097,2439.7,2439.6,25.34]
[1751003071334,1.42214908,2439.7,2439.6,25.34]
[1751003072147,1.01244908,2439.7,2439.6,25.34]
[1751003072335,0.4097,2439.7,2439.6,25.34]
[1751003072538,0.40969,2439.8,2439.6,25.34]
[1751003073248,1.4341,2439.9,2439.6,25.34]
[1751003073445,0.4097,2439.7,2439.6,31.987]
[1751003074337,0.4097,2439.7,2439.6,25.336]
[1751003074741,1.745,2439.7,2439.6,25.336]
[1751003076052,3.20869681,2440.6,2439.6,33.29417335]
[1751003076350,4.01244313,2440.8,2439.6,33.29417335]
[1751003076351,0.40958,2440.5,2440.2,3.2078]
[1751003076542,1.02009232,2440.4,2440.3,25.333]
[1751003076943,1.42967232,2440.4,2440.3,25.333]
[1751003077349,0.40958,2440.4,2440.3,25.333]
[1751003078549,0.40958,2440.5,2440.3,25.333]
[1751003078737,1.76006,2440.6,2440.3,25.7426]
[1751003078943,1.3505,2440.6,2440.3,25.333]
[1751003079250,0.40957,2440.5,2440.3,25.333]
[1751003080250,0.40958,2440.4,2440.3,25.333]
[1751003081552,2.95817335,2440.5,2440.2,3.2078]
[1751003081755,0.6775,2440.3,2440.2,3.2078]
[1751003082054,1.0871,2440.3,2440.2,28.5348]
[1751003082555,2.43,2440.3,2440.2,28.5348]
[1751003086057,2.43,2440.3,2440.2,3.2078]
[1751003086256,2.43,2440.3,2440.2,28.5318]
[1751003086456,1.02407,2440.2,2439.9,3.2078]
[1751003086660,0.4097,2439.7,2439.6,9.8528]
[1751003086963,0.4097,2439.7,2439.6,75.9768]
[1751003087152,0.4097,2439.7,2439.6,35.1758]
[1751003089862,0.4097,2439.7,2439.6,28.5298]
[1751003090457,0.4097,2439.7,2439.6,28.5308]
[1751003095272,0.4097,2439.7,2439.3,3.2078]
[1751003095273,0.40975,2439.4,2439.3,3.2078]
[1751003095571,0.40975,2439.4,2439.3,28.5298]
[1751003096073,1.12275,2439.4,2439.3,28.5308]
[1751003097770,0.40975,2439.4,2439.3,31.48897335]
[1751003103274,0.40975,2439.4,2439.3,28.5308]
[1751003103775,0.40975,2439.4,2439.3,3.2078]
[1751003104072,0.40975,2439.4,2439.3,28.5298]
[1751003104370,1.76465,2439.4,2439.3,28.5298]
[1751003104675,1.76465,2439.4,2439.3,28.5288]
[1751003104872,0.40974,2439.5,2439.3,31.48697335]
[1751003105069,0.40974,2439.5,2439.4,0.7076]
[1751003105479,0.40973,2439.6,2439.4,1.11735]
[1751003105679,0.40973,2439.6,2439.5,25.322]
[1751003105980,0.40973,2439.6,2439.5,28.28017335]
[1751003108280,0.40973,2439.6,2439.5,25.322]
[1751003111381,0.40971,2439.7,2439.5,25.73173]
[1751003111983,0.40971,2439.7,2439.5,28.68990335]
[1751003112282,0.40965,2440.1,2439.9,0.40967]
[1751003112487,0.40965,2440.1,2440.0,28.5268]
[1751003113779,1.75675,2440.1,2440.0,28.5268]
[1751003114278,2.78662211,2440.1,2440.0,28.5268]
[1751003114786,5.74479546,2440.1,2440.0,28.5268]
[1751003115288,0.40965,2440.0,2439.9,25.316]
[1751003115587,5.76619546,2440.0,2439.9,25.316]
[1751003117290,2.80802211,2440.0,2439.9,25.316]
[1751003118184,1.02987211,2440.0,2439.9,25.316]
[1751003119080,2.95817335,2440.2,2439.9,6.64]
[1751003119282,3.36783335,2440.0,2439.9,31.953]
[1751003119488,4.40735489,2440.0,2439.9,31.953]
[1751003119692,5.09215489,2440.0,2439.9,25.313]
[1751003119881,4.68249489,2440.0,2439.7,3.2078]
[1751003120083,0.40968,2439.8,2439.7,28.5198]
[1751003120690,1.78198,2439.8,2439.7,28.5198]
[1751003121389,2.82635363,2439.8,2439.7,28.5198]
[1751003121788,2.82635363,2439.8,2439.7,3.2078]
[1751003123986,5.62447363,2439.8,2439.2,3.2078]
[1751003124192,2.95817335,2439.6,2439.2,3.2078]
[1751003124396,1.4027,2439.5,2439.2,28.5178]
[1751003124586,0.40977,2439.3,2439.2,28.5178]
[1751003125995,0.40977,2439.3,2439.2,3.2078]
[1751003126293,0.40977,2439.3,2439.2,28.5188]
[1751003126490,1.81247,2439.3,2439.2,28.5188]
[1751003127193,0.40982,2439.0,2438.8,7.54145251]
[1751003127393,3.36799335,2439.0,2438.9,6.64]
[1751003127688,0.40982,2439.0,2438.9,31.95]
[1751003128388,0.40981,2439.1,2438.9,31.95]
[1751003128593,3.2078,2439.3,2438.9,35.31800335]
[1751003128797,0.40979,2439.2,2439.0,0.40981]
[1751003128994,0.40979,2439.2,2439.0,1.07621]
[1751003129589,3.2078,2439.3,2439.1,2.95817335]
[1751003129797,3.2078,2439.3,2439.2,0.40978]
[1751003130097,3.2078,2439.3,2439.2,25.71978]
[1751003130698,0.40976,2439.4,2439.2,25.71978]
[1751003132297,0.40975,2439.5,2439.2,25.71977]
[1751003132497,11.62807335,2439.8,2439.2,25.71977]
[1751003132498,1.463593,2439.4,2439.2,25.71977]
[1751003132695,1.3297,2439.7,2439.2,25.71977]
[1751003132995,0.40975,2439.5,2439.2,25.71977]
[1751003133195,1.05384458,2439.4,2439.2,25.71977]
[1751003133397,0.40975,2439.5,2439.2,25.71977]
[1751003133597,1.46349984,2439.4,2439.2,25.31]
[1751003133789,0.40977,2439.3,2439.2,25.31]
[1751003134890,1.46328693,2439.3,2439.2,25.31]
[1751003136992,1.05351693,2439.3,2439.2,25.31]
[1751003137194,0.40976,2439.4,2439.2,25.71978]
[1751003137398,0.40977,2439.3,2439.2,25.31]
[1751003138403,0.40976,2439.4,2439.2,25.71978]
[1751003138599,0.4098,2439.1,2439.0,3.2078]
[1751003138804,0.40981,2439.1,2439.0,31.938]
[1751003139005,0.40977,2439.3,2439.1,0.4098]
[1751003139207,0.40977,2439.3,2439.1,0.6739]
[1751003139606,0.40978,2439.2,2439.1,0.6739]
[1751003140303,0.40978,2439.2,2439.1,25.9799]
[1751003140602,0.40978,2439.2,2438.7,3.9259]
[1751003140802,2.95817335,2439.0,2438.7,4.5998]
[1751003141007,2.95817335,2438.8,2438.6,6.631]
[1751003141203,3.36802335,2438.8,2438.7,25.305]
[1751003141407,4.81762335,2438.8,2438.7,25.305]
[1751003142702,1.85945,2438.8,2438.7,25.305]
[1751003142910,0.40985,2438.8,2438.7,25.305]
[1751003143806,0.40985,2438.8,2438.7,25.304]
[1751003145003,0.40985,2438.9,2438.7,25.304]
[1751003145807,0.40985,2438.8,2438.7,25.304]
[1751003148505,0.7289,2439.1,2438.7,25.304]
[1751003148803,0.40983,2439.0,2438.8,4.33597335]
[1751003149111,0.40983,2439.0,2438.8,4.74582335]
[1751003149313,0.40983,2439.0,2438.8,4.33597335]
[1751003151018,0.40984,2438.9,2438.8,4.33597335]
[1751003153510,2.95817335,2439.1,2438.6,3.2078]
[1751003153708,0.40984,2438.9,2438.8,6.632]
[1751003154008,0.40987,2438.7,2438.6,9.8398]
[1751003154210,0.40987,2438.7,2438.6,35.1418]
[1751003155100,0.40987,2438.7,2438.6,9.8398]
[1751003155304,0.40987,2438.7,2438.6,35.1418]
[1751003156504,1.79317,2438.7,2438.6,35.1418]
[1751003156814,1.79317,2438.7,2438.6,9.8398]
[1751003157009,1.79317,2438.7,2438.6,35.1418]
[1751003159617,1.79317,2438.7,2438.6,3.2078]